fUSD/lending_fUSD_20250222
["ID","MTS","AMOUNT","RATE_DAILY","PERIOD"]
[354068793,1740221439487,-505.92400504,0.00010958,2]
[354068794,1740221439496,-503.84336033,0.00010958,2]
[354068795,1740221439505,-503.79475823,0.00010958,2]
[354068797,1740221439515,-500.0,0.00010958,2]
[354068798,1740221439524,-500.0,0.00010958,2]
[354068799,1740221439533,-500.0,0.00010958,2]
[354068800,1740221439542,-500.0,0.00010958,2]
[354068801,1740221439551,-500.0,0.00010958,2]
[354068802,1740221439560,-500.0,0.00010958,2]
[354068803,1740221439569,-506.03467688,0.00010958,2]
[354068804,1740221439578,-500.0,0.00010958,2]
[354068805,1740221439587,-500.0,0.00010958,2]
[354068806,1740221439597,-500.0,0.00010958,2]
[354068807,1740221439606,-517.61232976,0.00010958,2]
[354068808,1740221439615,-500.0,0.00010958,2]
[354068809,1740221439624,-500.0,0.00010958,2]
[354068810,1740221439634,-500.0,0.00010958,2]
[354068811,1740221439643,-504.74767686,0.00010958,2]
[354068812,1740221439651,-503.88787084,0.00010958,2]
[354068813,1740221439660,-500.0,0.00010958,2]
[354068814,1740221439669,-508.63635075,0.00010958,2]
[354068815,1740221439682,-512.93745721,0.00010958,2]
[354068816,1740221439730,-500.0,0.00010958,2]
[354068817,1740221439740,-508.05974625,0.00010958,2]
[354068818,1740221439749,-500.0,0.00010958,2]
[354068819,1740221439760,-500.00010241,0.00010958,2]
[354068820,1740221439769,-503.1246317,0.00010958,2]
[354068821,1740221439779,-500.0,0.00010958,2]
[354068822,1740221439788,-500.0,0.00010958,2]
[354068823,1740221439796,-513.33370781,0.00010958,2]
[354068824,1740221439806,-500.0,0.00010958,2]
[354068825,1740221439814,-500.0,0.00010958,2]
[354068826,1740221439824,-500.0,0.00010958,2]
[354068827,1740221439833,-502.85602183,0.00010958,2]
[354068828,1740221439843,-500.0,0.00010958,2]
[354068829,1740221439852,-500.0,0.00010958,2]
[354068830,1740221439861,-504.34678655,0.00010958,2]
[354068831,1740221439870,-500.0,0.00010958,2]
[354068832,1740221439879,-500.0,0.00010958,2]
[354068833,1740221439888,-500.0,0.00010958,2]
[354068834,1740221439898,-500.0,0.00010958,2]
[354068835,1740221439907,-506.1338945,0.00010958,2]
[354068836,1740221439915,-500.0,0.00010958,2]
[354068837,1740221439924,-502.28429243,0.00010958,2]
[354068838,1740221439932,-516.44,0.00010958,2]
[354068839,1740221439941,-504.86473755,0.00010958,2]
[354068840,1740221439950,-505.2392481,0.00010958,2]
[354068841,1740221439959,-500.0,0.00010958,2]
[354068842,1740221439968,-193.36138481,0.00010958,2]
[354068843,1740221439976,-508.94481354,0.00010958,2]
[354068844,1740221439985,-505.1702386,0.00010958,2]
[354068845,1740221439994,-1000.0,0.00010958,2]
[354068846,1740221440003,-500.0,0.00010958,2]
[354068847,1740221440012,-500.0,0.00010958,2]
[354068848,1740221440021,-504.50883535,0.00010958,2]
[354068849,1740221440029,-500.0,0.00010958,2]
[354068850,1740221440039,-502.3517227,0.00010958,2]
[354068851,1740221440048,-505.62350174,0.00010958,2]
[354068852,1740221440057,-500.0,0.00010958,2]
[354068853,1740221440066,-501.97788007,0.00010958,2]
[354068854,1740221440076,-500.0,0.00010958,2]
[354068855,1740221440085,-504.86945402,0.00010958,2]
[354068856,1740221440094,-514.18138723,0.00010958,2]
[354068857,1740221440103,-500.0,0.00010958,2]
[354068858,1740221440112,-504.65650449,0.00010958,2]
[354068859,1740221440121,-500.0,0.00010958,2]
[354068860,1740221440130,-504.55384589,0.00010958,2]
[354068861,1740221440139,-500.0,0.00010958,2]
[354068862,1740221440148,-503.16870738,0.00010958,2]
[354068864,1740221440157,-504.066237,0.00010958,2]
[354068866,1740221440166,-503.8944179,0.00010958,2]
[354068868,1740221440175,-500.0,0.00010958,2]
[354068870,1740221440184,-500.0,0.00010958,2]
[354068872,1740221440193,-509.56773809,0.00010958,2]
[354068874,1740221440202,-371.37737784,0.00010958,2]
[354068876,1740221440211,-520.53153261,0.00010958,2]
[354068878,1740221440220,-505.10506018,0.00010958,2]
[354068880,1740221440229,-515.42195733,0.00010958,2]
[354068882,1740221440237,-504.54146607,0.00010958,2]
[354068884,1740221440246,-500.0,0.00010958,2]
[354068886,1740221440255,-525.69310654,0.00010958,2]
[354068889,1740221440264,-500.0,0.00010958,2]
[354068891,1740221440273,-509.51909295,0.00010958,2]
[354068893,1740221440282,-500.94906572,0.00010958,2]
[354068895,1740221440291,-506.78073547,0.00010958,2]
[354068897,1740221440300,-500.0,0.00010958,2]
[354068899,1740221440309,-528.29925454,0.00010958,2]
[354068901,1740221440318,-502.17776934,0.00010958,2]
[354068903,1740221440327,-500.0,0.00010958,2]
[354068905,1740221440335,-505.86036711,0.00010958,2]
[354068907,1740221440344,-514.08019761,0.00010958,2]
[354068909,1740221440354,-502.21183843,0.00010958,2]
[354068911,1740221440362,-504.6982273,0.00010958,2]
[354068913,1740221440371,-502.03052384,0.00010958,2]
[354068915,1740221440381,-500.0,0.00010958,2]
[354068917,1740221440391,-505.04471482,0.00010958,2]
[354068919,1740221440400,-500.0,0.00010958,2]
[354068920,1740221440409,-500.0,0.00010958,2]
[354068923,1740221440418,-502.02160841,0.00010958,2]
[354068925,1740221440427,-500.0,0.00010958,2]
[354068926,1740221440436,-500.0,0.00010958,2]
[354068928,1740221440445,-500.0,0.00010958,2]
[354068931,1740221440455,-500.0,0.00010958,2]
[354068932,1740221440464,-503.93196865,0.00010958,2]
[354068934,1740221440473,-524.52160564,0.00010958,2]
[354068937,1740221440483,-500.0,0.00010958,2]
[354068938,1740221440492,-503.33450665,0.00010958,2]
[354068940,1740221440501,-500.0,0.00010958,2]
[354068942,1740221440510,-500.0,0.00010958,2]
[354068944,1740221440520,-546.95088839,0.00010958,2]
[354068946,1740221440530,-501.74079928,0.00010958,2]
[354068948,1740221440538,-505.22713996,0.00010958,2]
[354068950,1740221440548,-500.0,0.00010958,2]
[354068952,1740221440557,-292.12677686,0.00010958,2]
[354068954,1740221440567,-502.31095044,0.00010958,2]
[354068956,1740221440575,-500.49161075,0.00010958,2]
[354068958,1740221440585,-503.63234082,0.00010958,2]
[354068960,1740221440594,-507.7588775,0.00010958,2]
[354068962,1740221440603,-500.0,0.00010958,2]
[354068964,1740221440612,-501.36634825,0.00010958,2]
[354068966,1740221440622,-504.76764873,0.00010958,2]
[354068968,1740221440631,-362.76056803,0.00010958,2]
[354068970,1740221440640,-501.31993687,0.00010958,2]
[354068972,1740221440650,-503.8467261,0.00010958,2]
[354068974,1740221440659,-500.0,0.00010958,2]
[354068976,1740221440668,-504.92081673,0.00010958,2]
[354068978,1740221440679,-500.0,0.00010958,2]
[354068980,1740221440688,-510.9396677,0.00010958,2]
[354068982,1740221440697,-481.1710842,0.00010958,2]
[354068984,1740221440707,-506.54633581,0.00010958,2]
[354068986,1740221440715,-500.0,0.00010958,2]
[354068988,1740221440726,-503.03719587,0.00010958,2]
[354068990,1740221440735,-504.9159162,0.00010958,2]
[354068992,1740221440744,-505.42310346,0.00010958,2]
[354068994,1740221440755,-500.0,0.00010958,2]
[354068996,1740221440765,-543.23136947,0.00010958,2]
[354068998,1740221440774,-503.54817835,0.00010958,2]
[354069000,1740221440782,-503.18634511,0.00010958,2]
[354069002,1740221440791,-500.0,0.00010958,2]
[354069004,1740221440800,-502.20056521,0.00010958,2]
[354069006,1740221440809,-510.61038388,0.00010958,2]
[354069008,1740221440818,-504.00244338,0.00010958,2]
[354069010,1740221440827,-500.41787448,0.00010958,2]
[354069012,1740221440837,-500.0,0.00010958,2]
[354069014,1740221440846,-500.0,0.00010958,2]
[354069016,1740221440855,-502.07155432,0.00010958,2]
[354069018,1740221440864,-503.0453608,0.00010958,2]
[354069020,1740221440873,-500.0,0.00010958,2]
[354069022,1740221440882,-505.95417652,0.00010958,2]
[354069024,1740221440892,-207.9959527,0.00010958,2]
[354069026,1740221440901,-500.0,0.00010958,2]
[354069028,1740221440910,-500.0,0.00010958,2]
[354069029,1740221440919,-500.0,0.00010958,2]
[354069031,1740221440929,-500.0,0.00010958,2]
[354069034,1740221440938,-503.51874742,0.00011041,2]
[354069036,1740221440947,-504.90492712,0.00011041,2]
[354069037,1740221440956,-500.0,0.00011041,2]
[354069039,1740221440965,-172.82601506,0.00011041,2]
[354069041,1740221440974,-500.0,0.00011041,2]
[354069044,1740221440983,-500.0,0.00011041,2]
[354069045,1740221440993,-500.0,0.00011041,2]
[354069047,1740221441002,-598.73039497,0.00011041,2]
[354069050,1740221441013,-500.0,0.00011041,2]
[354069052,1740221441022,-414.18,0.00011041,2]
[354069054,1740221441031,-509.57459884,0.00011041,2]
[354069056,1740221441040,-500.0,0.00011041,2]
[354069057,1740221441049,-512.72574557,0.00011041,2]
[354069059,1740221441058,-505.69147934,0.00011041,2]
[354069062,1740221441068,-500.0,0.00011041,2]
[354069064,1740221441079,-520.84608578,0.00011041,2]
[354069066,1740221441090,-500.0,0.00011041,2]
[354069068,1740221441099,-514.20184962,0.00011041,2]
[354069070,1740221441109,-500.0,0.00011041,2]
[354069072,1740221441118,-500.0,0.00011041,2]
[354069074,1740221441127,-505.52192141,0.00011041,2]
[354069076,1740221441137,-505.43581792,0.00011041,2]
[354069078,1740221441146,-506.95496752,0.00011041,2]
[354069080,1740221441156,-155.64607782,0.00011041,2]
[354069082,1740221441167,-505.27408671,0.00011041,2]
[354069084,1740221441176,-500.0,0.00011041,2]
[354069086,1740221441186,-500.0,0.00011041,2]
[354069088,1740221441196,-500.0,0.00011041,2]
[354069090,1740221441205,-500.0,0.00011041,2]
[354069092,1740221441215,-546.98281744,0.00011041,2]
[354069094,1740221441225,-372.1915511,0.00011041,2]
[354069096,1740221441234,-510.11513808,0.00011041,2]
[354069098,1740221441244,-500.0,0.00011041,2]
[354069100,1740221441254,-500.0,0.00011041,2]
[354069102,1740221441263,-500.0,0.00011041,2]
[354069104,1740221441273,-500.0,0.00011041,2]
[354069106,1740221441282,-509.85851642,0.00011041,2]
[354069108,1740221441292,-294.06460076,0.00011041,2]
[354069110,1740221441301,-515.7796198,0.00011041,2]
[354069112,1740221441311,-503.36275516,0.00011041,2]
[354069114,1740221441320,-500.0,0.00011041,2]
[354069116,1740221441332,-507.81514609,0.00011041,2]
[354069118,1740221441341,-500.0,0.00011041,2]
[354069120,1740221441351,-512.82694963,0.00011041,2]
[354069122,1740221441362,-510.27768772,0.00011041,2]
[354069124,1740221441371,-509.19158085,0.00011041,2]
[354069126,1740221441381,-507.01715734,0.00011041,2]
[354069128,1740221441391,-509.50693924,0.00011041,2]
[354069130,1740221441401,-506.95597037,0.00011041,2]
[354069132,1740221441411,-500.0,0.00011041,2]
[354069134,1740221441421,-176.39105292,0.00011041,2]
[354069136,1740221441430,-500.0,0.00011041,2]
[354069138,1740221441439,-500.0,0.00011041,2]
[354069140,1740221441449,-500.0,0.00011041,2]
[354069142,1740221441459,-500.0,0.00011041,2]
[354069144,1740221441469,-179.86032301,0.00011041,2]
[354069147,1740221441479,-500.0,0.00011041,2]
[354069149,1740221441488,-508.13608599,0.00011041,2]
[354069150,1740221441498,-507.77967209,0.00011041,2]
[354069152,1740221441507,-510.50015575,0.00011041,2]
[354069154,1740221441517,-508.82954325,0.00011041,2]
[354069156,1740221441526,-508.70620553,0.00011041,2]
[354069158,1740221441535,-510.46958075,0.00011041,2]
[354069160,1740221441545,-505.06764195,0.00011041,2]
[354069162,1740221441554,-507.28546161,0.00011041,2]
[354069164,1740221441564,-507.62304968,0.00011041,2]
[354069166,1740221441574,-500.0,0.00011041,2]
[354069168,1740221441584,-507.31045588,0.00011041,2]
[354069170,1740221441593,-500.48561187,0.00011041,2]
[354069172,1740221441602,-507.9020863,0.00011041,2]
[354069174,1740221441612,-521.59582307,0.00011041,2]
[354069176,1740221441621,-500.0,0.00011041,2]
[354069178,1740221441631,-504.10332976,0.00011041,2]
[354069180,1740221441640,-505.45945792,0.00011041,2]
[354069182,1740221441649,-179.8603127,0.00011041,2]
[354069184,1740221441659,-165.350616,0.00011041,2]
[354069186,1740221441668,-500.0,0.00011041,2]
[354069188,1740221441680,-505.13347405,0.00011041,2]
[354069190,1740221441690,-355.74500216,0.00011041,2]
[354069192,1740221441699,-520.87494329,0.00011041,2]
[354069194,1740221441708,-504.63120974,0.00011041,2]
[354069196,1740221441719,-500.0,0.00011041,2]
[354069198,1740221441728,-506.46192327,0.00011041,2]
[354069200,1740221441738,-502.17674175,0.00011041,2]
[354069202,1740221441748,-504.24664338,0.00011041,2]
[354069204,1740221441758,-500.0,0.00011041,2]
[354069205,1740221441768,-200.0,0.00011041,2]
[354069206,1740221441777,-502.63550388,0.00011041,2]
[354069207,1740221441786,-500.0,0.00011041,2]
[354069208,1740221441795,-514.07576499,0.00011041,2]
[354069209,1740221441805,-499.39726153,0.00011041,2]
[354069210,1740221441814,-506.14772194,0.00011041,2]
[354069211,1740221441823,-488.78010582,0.00011041,2]
[354069212,1740221441832,-220.31738893,0.00011041,2]
[354069213,1740221441841,-169.33343938,0.00011041,2]
[354069215,1740221441850,-449.13346383,0.00011041,2]
[354069217,1740221441861,-500.0,0.00011041,2]
[354069219,1740221441870,-509.33571855,0.00011041,2]
[354069221,1740221441880,-509.01155693,0.00011041,2]
[354069223,1740221441890,-500.0,0.00011041,2]
[354069225,1740221441899,-509.07103974,0.00011041,2]
[354069227,1740221441909,-509.60025409,0.00011041,2]
[354069229,1740221441919,-508.32873712,0.00011041,2]
[354069231,1740221441927,-216.13280894,0.00011041,2]
[354069233,1740221441937,-500.0,0.00011041,2]
[354069235,1740221441947,-437.65899383,0.00011041,2]
[354069237,1740221441956,-503.50855157,0.00011041,2]
[354069239,1740221441965,-229.11063972,0.00011041,2]
[354069241,1740221441975,-3106.07234055,0.00011099,2]
[354069243,1740221441984,-500.0,0.00011123,2]
[354069245,1740221441994,-3106.07234049,0.00011172,2]
[354069247,1740221442003,-500.0,0.00011205,2]
[354069249,1740221442012,-500.0,0.00011287,2]
[354069251,1740221442022,-500.0,0.00011369,2]
[354069253,1740221442031,-500.0,0.00011452,2]
[354069255,1740221442040,-3106.07234049,0.00011485,2]
[354069257,1740221442050,-500.0,0.00011534,2]
[354069259,1740221442060,-150.0,0.00011589,2]
[354069261,1740221442070,-1424.0,0.0001176,2]
[354069262,1740221442079,-3106.07234049,0.00011799,2]
[354069265,1740221442088,-1000.0,0.0001189,2]
[354069266,1740221442098,-205.28891333,0.000119,2]
[354069268,1740221442107,-3106.07234049,0.00012112,2]
[354069270,1740221442117,-393.75,0.00012272,2]
[354069273,1740221442128,-1000.0,0.00012328,2]
[354069275,1740221442138,-205.28891333,0.00012374,2]
[354069277,1740221442148,-3106.07234049,0.00012426,2]
[354069279,1740221442158,-175.17146181,0.00012548,2]
[354069281,1740221442167,-1000.0,0.00012602,2]
[354069283,1740221442178,-526.79,0.00012632,2]
[354069285,1740221442187,-500.0,0.00012632,2]
[354069287,1740221442197,-500.0,0.00012632,2]
[354069289,1740221442206,-1007.75838338,0.00012632,2]
[354069291,1740221442215,-1108.94240595,0.00012632,2]
[354069293,1740221442224,-201.4703466,0.00012642,2]
[354069295,1740221442233,-1020.63,0.00012652,2]
[354069297,1740221442243,-175.17146181,0.00012712,2]
[354069299,1740221442252,-150.0,0.00012721,2]
[354069301,1740221442261,-150.0,0.00012736,2]
[354069303,1740221442270,-3106.07234049,0.00012739,2]
[354069305,1740221442279,-150.0,0.00012758,2]
[354069307,1740221442288,-150.0,0.00012766,2]
[354069309,1740221442297,-3666.491,0.0001278,2]
[354069311,1740221442307,-185.66,0.0001278,2]
[354069313,1740221442316,-403.0927925,0.00012781,2]
[354069315,1740221442326,-150.0,0.00012793,2]
[354069317,1740221442335,-402.77715522,0.000128,2]
[354069319,1740221442344,-488.89709208,0.000128,2]
[354069321,1740221442353,-150.0,0.00012814,2]
[354069323,1740221442363,-150.0,0.00012817,2]
[354069325,1740221442372,-150.0,0.00012822,2]
[354069327,1740221442381,-150.0,0.00012822,2]
[354069330,1740221442391,-150.0,0.00012829,2]
[354069332,1740221442401,-150.0,0.00012835,2]
[354069334,1740221442411,-150.0,0.00012842,2]
[354069336,1740221442421,-150.0,0.00012845,2]
[354069338,1740221442431,-205.28891333,0.00012847,2]
[354069340,1740221442441,-150.0,0.00012862,2]
[354069342,1740221442450,-150.0,0.00012876,2]
[354069344,1740221442460,-1000.0,0.00012876,2]
[354069346,1740221442470,-150.0,0.00012877,2]
[354069348,1740221442480,-150.0,0.00012878,2]
[354069350,1740221442490,-150.0,0.00012888,2]
[354069352,1740221442500,-150.0,0.00012888,2]
[354069354,1740221442509,-386.5238244,0.00012889,2]
[354069356,1740221442518,-475.4068816,0.00012889,2]
[354069358,1740221442528,-208.6639281,0.00012889,2]
[354069360,1740221442538,-200.0,0.0001289,2]
[354069362,1740221442546,-919.88346,0.0001289,2]
[354069364,1740221442556,-469.6288238,0.00012891,2]
[354069366,1740221442566,-552.7338232,0.00012891,2]
[354069368,1740221442575,-635.8388227,0.00012891,2]
[354069370,1740221442586,-572.8465982,0.00012891,2]
[354069372,1740221442595,-670.2863147,0.00012891,2]
[354069374,1740221442605,-767.7260313,0.00012891,2]
[354069376,1740221442615,-208.6639281,0.00012891,2]
[354069378,1740221442625,-208.6639281,0.00012891,2]
[354069380,1740221442634,-208.6639281,0.00012891,2]
[354069382,1740221442643,-500.0,0.00012898,2]
[354069384,1740221442653,-554.30340314,0.00012898,2]
[354069386,1740221442662,-500.0,0.00012898,2]
[354069389,1740221442671,-500.0,0.00012898,2]
[354069391,1740221442685,-889.12955366,0.00012898,2]
[354069393,1740221442694,-300.0,0.00012899,2]
[354069395,1740221442703,-500.0,0.00012899,2]
[354069397,1740221442712,-500.67902605,0.00012899,2]
[354069399,1740221442722,-647.67484319,0.00012899,2]
[354069401,1740221442732,-500.0,0.00012899,2]
[354069402,1740221442741,-500.48234894,0.00012899,2]
[354069404,1740221442751,-501.07597973,0.00012899,2]
[354069406,1740221442761,-502.56694119,0.00012899,2]
[354069409,1740221442771,-429.66239205,0.00012899,2]
[354069411,1740221442781,-228.82969398,0.00012899,2]
[354069413,1740221442790,-340.62993719,0.00012899,2]
[354069415,1740221442800,-1000.0,0.00012899,2]
[354069417,1740221442809,-500.0,0.00012899,2]
[354069419,1740221442819,-500.0,0.00012899,2]
[354069421,1740221442830,-500.0,0.00012899,2]
[354069423,1740221442839,-151.0517042,0.00012899,2]
[354069425,1740221442849,-681.7,0.00012899,2]
[354069427,1740221442859,-1000.0,0.00012899,2]
[354069429,1740221442869,-500.0,0.00012899,2]
[354069431,1740221442878,-500.0,0.00012899,2]
[354069433,1740221442888,-500.0,0.00012899,2]
[354069435,1740221442898,-500.0,0.00012899,2]
[354069437,1740221442907,-500.0,0.00012899,2]
[354069439,1740221442916,-500.0,0.00012899,2]
[354069441,1740221442925,-525.35317248,0.00012899,2]
[354069443,1740221442935,-500.0,0.00012899,2]
[354069445,1740221442944,-500.0,0.00012899,2]
[354069447,1740221442954,-500.0,0.00012899,2]
[354069449,1740221442963,-500.0,0.00012899,2]
[354069451,1740221442973,-500.0,0.00012899,2]
[354069453,1740221442983,-500.0,0.00012899,2]
[354069455,1740221442992,-500.0,0.00012899,2]
[354069457,1740221443002,-500.0,0.00012899,2]
[354069459,1740221443012,-526.79,0.00012899,2]
[354069461,1740221443021,-526.79,0.00012899,2]
[354069463,1740221443031,-526.79,0.00012899,2]
[354069465,1740221443041,-526.79,0.00012899,2]
[354069467,1740221443051,-526.79,0.00012899,2]
[354069469,1740221443061,-526.79,0.00012899,2]
[354069471,1740221443070,-526.79,0.00012899,2]
[354069473,1740221443080,-526.79,0.00012899,2]
[354069475,1740221443090,-500.0,0.00012899,2]
[354069477,1740221443100,-500.0,0.00012899,2]
[354069479,1740221443110,-500.0,0.00012899,2]
[354069481,1740221443120,-520.90509087,0.00012899,2]
[354069483,1740221443130,-500.0,0.00012899,2]
[354069485,1740221443139,-500.0,0.00012899,2]
[354069487,1740221443149,-500.0,0.00012899,2]
[354069489,1740221443160,-500.0,0.00012899,2]
[354069491,1740221443170,-500.0,0.00012899,2]
[354069493,1740221443180,-500.0,0.00012899,2]
[354069495,1740221443190,-503.9035701,0.00012899,2]
[354069497,1740221443199,-155.81777895,0.000129,2]
[354069499,1740221443209,-1968.0,0.000129,2]
[354069502,1740221443219,-383990.0891307,0.000129,2]
[354069535,1740221443540,-6385.26312749,0.000129,2]
[354069537,1740221443551,-68502.65715522,0.000129,2]
[354069539,1740221443563,-603.66701569,0.000129,2]
[354069542,1740221443575,-27075.32890939,0.000129,2]
[354069544,1740221443587,-9656.99669849,0.000129,2]
[354069546,1740221443599,-4710.2662254,0.000129,2]
[354069548,1740221443610,-712.79842,0.000129,2]
[354069550,1740221443621,-759.45939,0.000129,2]
[354069553,1740221443632,-1056.39,0.000129,2]
[354069564,1740221443734,-417.45361277,0.000129,2]
[354069565,1740221443745,-10465.77168439,0.000129,2]
[354069566,1740221443758,-389.9383245,0.000129,2]
[354069568,1740221443818,-10136.58568981,0.000129,2]
[354069570,1740221443831,-1259.34392676,0.000129,2]
[354069574,1740221443859,-119939.43147106,0.000129,2]
[354069754,1740221445612,-302.16779834,0.00012799,2]
[354069755,1740221445622,-1079.9520288,0.000129,2]
[354069771,1740221445820,-7473.48687811,0.000129,2]
[354069892,1740221513675,156.12,8.767e-05,2]
[354069894,1740221880333,23764.7,9e-05,2]
[354069896,1740222494328,918.45,9.406e-05,2]
[354069898,1740222511442,448.99,8.767e-05,2]
[354069901,1740222631679,-550.0,0.0001,2]
[354069902,1740222631689,-240.06139752,0.00010557,2]
[354069903,1740222631700,-261.46109945,0.00010557,2]
[354069904,1740222631710,-493.2,0.00010657,2]
[354069905,1740222631721,-490.77,0.00010657,2]
[354069906,1740222631731,-499.68,0.00010657,2]
[354069907,1740222631740,-261.46109944,0.00010657,2]
[354069908,1740222631750,-300.0,0.00010756,2]
[354069909,1740222631759,-505.57,0.00010757,2]
[354069910,1740222631769,-507.7,0.00010757,2]
[354069911,1740222631779,-507.29,0.00010757,2]
[354069912,1740222631789,-491.47,0.00010757,2]
[354069913,1740222631799,-501.93,0.00010757,2]
[354069914,1740222631810,-499.31,0.00010757,2]
[354069915,1740222631820,-495.35,0.00010757,2]
[354069916,1740222631830,-503.35,0.00010757,2]
[354069917,1740222631839,-150.0,0.00010856,2]
[354069918,1740222631848,-505.7,0.00010857,2]
[354069919,1740222631858,-493.47,0.00010857,2]
[354069920,1740222631868,-503.66,0.00010857,2]
[354069921,1740222631877,-504.2,0.00010857,2]
[354069922,1740222631887,-492.98,0.00010857,2]
[354069923,1740222631897,-505.04,0.00010857,2]
[354069924,1740222631906,-497.25,0.00010857,2]
[354069925,1740222631915,-490.63,0.00010857,2]
[354069926,1740222631924,-1944.8674,0.00010858,2]
[354069927,1740222631934,-497.29,0.00010957,2]
[354069928,1740222631943,-504.19,0.00010957,2]
[354069929,1740222631954,-498.25,0.00010957,2]
[354069930,1740222631964,-495.26,0.00010957,2]
[354069931,1740222631973,-500.0,0.00010958,2]
[354069932,1740222631982,-158.488519,0.00010958,2]
[354069933,1740222631991,-496.47,0.00010958,2]
[354069934,1740222632001,-150.52833529,0.00011041,2]
[354069935,1740222632011,-153.0,0.00011194,2]
[354069936,1740222632020,-289.34,0.00011378,2]
[354069937,1740222632030,-500.0,0.00011404,2]
[354069938,1740222632039,-164.31,0.00011446,2]
[354069939,1740222632049,-391.89,0.00011446,2]
[354069940,1740222632058,-2000.0,0.00011555,2]
[354069941,1740222632068,-430.49,0.00011562,2]
[354069942,1740222632077,-918.45,0.0001167,2]
[354069943,1740222632087,-150.0,0.00011688,2]
[354069944,1740222632096,-150.0,0.00011688,2]
[354069945,1740222632106,-559.31319206,0.00011732,2]
[354069947,1740222632116,-1424.0,0.00011761,2]
[354069949,1740222632128,-150.0,0.00011788,2]
[354069951,1740222632138,-420.0,0.00011823,2]
[354069953,1740222632147,-23900.0,0.00011832,2]
[354069955,1740222632156,-1000.0,0.00011832,2]
[354069957,1740222632166,-150.0,0.00011887,2]
[354069959,1740222632175,-150.0,0.00011898,2]
[354069961,1740222632184,-150.0,0.00011987,2]
[354069963,1740222632194,-515.40654039,0.00012,2]
[354069965,1740222632203,-150.0,0.00012087,2]
[354069967,1740222632211,-150.0,0.00012121,2]
[354069968,1740222632220,-150.0,0.00012187,2]
[354069971,1740222632230,-150.0,0.00012287,2]
[354069972,1740222632239,-1000.0,0.00012328,2]
[354069974,1740222632248,-150.0,0.00012387,2]
[354069976,1740222632257,-150.0,0.00012487,2]
[354069978,1740222632266,-150.0,0.00012553,2]
[354069981,1740222632275,-150.0,0.00012587,2]
[354069983,1740222632285,-1000.0,0.00012602,2]
[354069985,1740222632295,-1083.79317435,0.00012642,2]
[354069988,1740222632303,-254.7452138,0.00012642,2]
[354069990,1740222632313,-150.0,0.0001265,2]
[354069992,1740222632322,-150.0,0.00012687,2]
[354069994,1740222632332,-2860.75570419,0.00012698,2]
[354069996,1740222632342,-1372.1735,0.000127,2]
[354069999,1740222632352,-150.0,0.00012705,2]
[354070001,1740222632361,-150.0,0.00012721,2]
[354070003,1740222632370,-403.09279251,0.00012745,2]
[354070004,1740222632380,-150.0,0.00012753,2]
[354070007,1740222632391,-150.0,0.0001276,2]
[354070009,1740222632400,-150.0,0.00012784,2]
[354070010,1740222632409,-150.0,0.00012787,2]
[354070012,1740222632419,-150.0,0.00012787,2]
[354070015,1740222632429,-185.66,0.0001279,2]
[354070017,1740222632438,-1459.67918529,0.0001279,2]
[354070036,1740222632608,-1473.51281471,0.0001279,2]
[354070038,1740222632618,-931.82170221,0.00012799,2]
[354070040,1740222632626,-307.94668695,0.00012799,2]
[354070042,1740222632635,-11874.5707,0.000128,2]
[354070044,1740222632645,-5740.4091,0.000128,2]
[354070046,1740222632655,-345.2375616,0.000128,2]